Workbook

Sheet Mestaruussarja
B1: Markku Virtanen | E1: 8.11.1956 Jyväskylä
B2: MESTARUUSSARJA | E2: Runkosarja | I2: Kärkilyönnit (KL), pesänvälit | P2: Ylempi loppusarja | W2: Alempi loppusarja | AD2: Arvo-ottelut | AH2: Mitalit
B3: Vuosi | C3: Sija | D3: Seura | E3: OTT | F3: KUN | G3: LÖI | H3: TOI | I3: KL | J3: 0 > 1 | K3: 1 > 2 | L3: 2 > 3 | M3: 3 > k | N3: KL-% | P3: OTT | Q3: KUN | R3: LÖI | S3: TOI | T3: KL | U3: KL-% | W3: OTT | X3: KUN | Y3: LÖI | Z3: TOI | AA3: KL | AB3: KL-% | AD3: IL | AE3: LL | AF3: Cup | AG3: K | AH3: H | AI3: P
B4: 1981 | C4: 2. | D4: Lohi | F4: ykkössarja
B5: 1982 | C5: 10. | D5: Lohi | E5: 11 | F5: 1 | G5: 3 | H5: 2 | I5: 20 | J5: 6 | K5: 5 | L5: 5 | M5: 4 | N5: 37.0 % | W5: 6 | X5: 0 | Y5: 1 | Z5: 1 | AA5: 9 | AB5: 36.0 %
B6: 1983 | C6: 11. | D6: Lohi | F6: ykkössarja
B8: 1985 | C8: 9. | D8: Valo | F8: suomensarja
B9: 1986 | C9: 12. | D9: Valo | F9: suomensarja
B10: 1987
B11: 1988
B12: 1989 | C12: 12. | D12: Lohi | F12: ykkössarja
B13: 1990
B14: 1991
B15: 1992 | C15: 12. | D15: Lohi | F15: suomensarja
B16: Yhteensä | E16: 11 | F16: 1 | G16: 3 | H16: 2 | I16: 20 | J16: 6 | K16: 5 | L16: 5 | M16: 4 | N16: 37.0 % | P16: 0 | Q16: 0 | R16: 0 | S16: 0 | T16: 0 | U16: 0.0 % | W16: =PRODUCT(E22) -> 6 | X16: =PRODUCT(F22) -> 0 | Y16: 1 | Z16: 1 | AA16: 9 | AB16: =PRODUCT(N22) -> 36.0 % | AD16: 0 | AE16: 0 | AF16: 0 | AG16: 0 | AH16: 0 | AI16: 0
B17: Pesispörssi | D17: 15.0
B19: URA SM-SARJASSA | E19: OTT | F19: KUN | G19: LÖI | H19: TOI | I19: KL | K19: ka/L | L19: ka/T | M19: ka/KL | N19: KL-% | P19: ENSIMMÄISET RUNKOSARJASSA
B20: Runkosarja | E20: 11 | F20: 1 | G20: 3 | H20: 2 | I20: 20 | K20: 0.36 | L20: 0.18 | M20: 1.82 | N20: 37.0 % | P20: Ottelu | R20: 02.05. 1982 Lohi - KaMa 10-9 | Y20: 1. ottelu | AA20: 25 v 5 kk 24 pv
B21: Ylempi loppusarja | P21: Lyöty | R21: 29.07. 1982 KiU - Lohi 10-9 | Y21: 9. ottelu | AA21: 25 v 8 kk 21 pv
B22: Alempi loppusarja | E22: 6 | F22: 0 | G22: 1 | H22: 1 | I22: 9 | K22: 0.17 | L22: 0.17 | M22: 1.50 | N22: 36.0 % | P22: Tuotu | R22: 02.05. 1982 Lohi - KaMa 10-9 | Y22: 1. ottelu | AA22: 25 v 5 kk 24 pv
B23: KAIKKI | E23: 17 | F23: 1 | G23: 4 | H23: 3 | I23: 29 | K23: 0.29 | L23: 0.18 | M23: 1.71 | N23: 36.7 % | P23: Kunnari | R23: 29.07. 1982 KiU - Lohi 10-9 | Y23: 9. ottelu | AA23: 25 v 8 kk 21 pv
B25: Seurat | D25: Lohi = Jyväskylän Lohi (1924)
D26: Valo = Jyväskylän Valo (1949)

Sheet MYP, MSS
B1: Markku Virtanen | E1: 8.11.1956 Jyväskylä
B2: YKKÖSPESIS | E2: Runkosarja | L2: Runkosarja TOP-10 | Q2: Jatkosarjat | X2: SUOMENSARJA | AA2: Runkosarja | AH2: Runkosarja TOP-10 | AM2: Jatkosarjat
B3: Vuosi | C3: Sija | D3: Seura | E3: OTT | F3: KUN | G3: LÖI | H3: TOI | I3: KL | J3: KL-% | L3: LÖI | M3: TOI | N3: L+T | O3: KL | Q3: OTT | R3: KUN | S3: LÖI | T3: TOI | U3: KL | V3: KL-% | X3: Vuosi | Y3: Sija | Z3: Seura | AA3: OTT | AB3: KUN | AC3: LÖI | AD3: TOI | AE3: KL | AF3: KL-% | AH3: LÖI | AI3: TOI | AJ3: L+T | AK3: KL | AM3: OTT | AN3: KUN | AO3: LÖI | AP3: TOI | AQ3: KL | AR3: KL-%
B4: 1981 | C4: 2. | D4: Lohi | E4: 6 | F4: 0 | G4: 2 | H4: 2 | Q4: 10 | R4: 0 | S4: 5 | T4: 7
B6: 1983 | C6: 11. | D6: Lohi | E6: 10 | F6: 1 | G6: 5 | H6: 2 | Q6: 10 | R6: 0 | S6: 4 | T6: 4
X8: 1985 | Y8: 9. | Z8: Valo | AA8: 3 | AB8: 0 | AC8: 2 | AD8: 1
X9: 1986 | Y9: 12. | Z9: Valo | AA9: 11 | AB9: 0 | AC9: 8 | AD9: 3
B11: 1989 | C11: 12. | D11: Lohi | E11: 6 | F11: 0 | G11: 2 | H11: 0
X13: 1992 | Y13: 12. | Z13: Lohi | AA13: 1 | AB13: 0 | AC13: 1 | AD13: 1
B14: YHTEENSÄ | E14: =SUM(E4:E13) -> 22 | F14: =SUM(F4:F13) -> 1 | G14: =SUM(G4:G13) -> 9 | H14: =SUM(H4:H13) -> 4 | I14: =SUM(I4:I13) -> 0 | J14: 0.0 % | K14: =SUM(K4:K13) -> 0 | Q14: =SUM(Q4:Q13) -> 20 | R14: =SUM(R4:R13) -> 0 | S14: =SUM(S4:S13) -> 9 | T14: =SUM(T4:T13) -> 11 | U14: =SUM(U4:U13) -> 0 | V14: 0.0 % | W14: =SUM(W4:W13) -> 0 | X14: YHTEENSÄ | AA14: =SUM(AA4:AA13) -> 15 | AB14: =SUM(AB4:AB13) -> 0 | AC14: =SUM(AC4:AC13) -> 11 | AD14: =SUM(AD4:AD13) -> 5 | AE14: =SUM(AE4:AE13) -> 0 | AF14: 0.0 % | AG14: =SUM(AG4:AG13) -> 0 | AM14: =SUM(AM4:AM13) -> 0 | AN14: =SUM(AN4:AN13) -> 0 | AO14: =SUM(AO4:AO13) -> 0 | AP14: =SUM(AP4:AP13) -> 0 | AQ14: =SUM(AQ4:AQ13) -> 0 | AR14: 0.0 % | AS14: =SUM(AS4:AS13) -> 0
B16: KAIKKI OTTELUT | E16: OTT | F16: KUN | G16: LÖI | H16: TOI | I16: KL | J16: KL-% | L16: ka/L | M16: ka/T | N16: ka/l+t | O16: ka/kl | R16: Seurat | T16: Lohi = Jyväskylän Lohi (1924)
B17: SUPERPESIS | E17: 17 | F17: 1 | G17: 4 | H17: 3 | I17: 29 | J17: 36.7 % | K17: =PRODUCT(I17/J17) -> 79.01907357 | L17: =PRODUCT((F17+G17)/E17) -> 0.29 | M17: =PRODUCT(H17/E17) -> 0.18 | N17: =PRODUCT((F17+G17+H17)/E17) -> 0.47 | O17: =PRODUCT(I17/E17) -> 1.71 | T17: Valo = Jyväskylän Valo (1949)
B18: YKKÖSPESIS | E18: =PRODUCT(E14+Q14) -> 42 | F18: =PRODUCT(F14+R14) -> 1 | G18: =PRODUCT(G14+S14) -> 18 | H18: =PRODUCT(H14+T14) -> 15 | I18: =PRODUCT(I14+U14) -> 0 | J18: 0.0 % | K18: 0 | L18: =PRODUCT((F18+G18)/E18) -> 0.45 | M18: =PRODUCT(H18/E18) -> 0.36 | N18: =PRODUCT((F18+G18+H18)/E18) -> 0.81 | O18: =PRODUCT(I18/E18) -> 0.00
B19: SUOMENSARJA | E19: =PRODUCT(AA14+AM14) -> 15 | F19: =PRODUCT(AB14+AN14) -> 0 | G19: =PRODUCT(AC14+AO14) -> 11 | H19: =PRODUCT(AD14+AP14) -> 5 | I19: =PRODUCT(AE14+AQ14) -> 0 | J19: 0.0 % | K19: 0 | L19: =PRODUCT((F19+G19)/E19) -> 0.73 | M19: =PRODUCT(H19/E19) -> 0.33 | N19: =PRODUCT((F19+G19+H19)/E19) -> 1.07 | O19: =PRODUCT(I19/E19) -> 0.00
B20: YHTEENSÄ | E20: =SUM(E17:E19) -> 74 | F20: =SUM(F17:F19) -> 2 | G20: 33 | H20: 23 | I20: 29 | J20: 0.0 % | K20: =SUM(K17:K19) -> 79.01907357 | L20: =PRODUCT((F20+G20)/E20) -> 0.47 | M20: =PRODUCT(H20/E20) -> 0.31 | N20: =PRODUCT((F20+G20+H20)/E20) -> 0.78 | O20: 1.71
